{"text_format":"2","workbook":"xlsx","n_sheets":2,"sheets":["Beschaffung","Beispiel"],"not_rendered":{"charts":0,"images":0,"macros":0,"external_links":0,"defined_names":0,"comments":0,"pivot_tables":0},"unopened":[],"bounds":{"document_bytes":16777216,"sheet_cells":100000,"run_cost":"one","rows_first":2000,"rows_last":500,"rows_between":2000,"halvings":0,"cell_chars":16384,"cell_head_chars":4096},"cells_cut":0,"cells_raw":0,"read":"whole","date_system":"1900"}

{"sheet":"Beschaffung","index":0,"n_rows":36,"n_cols":23,"rows_kept":36,"cut":false,"hidden":false,"merged":[[13,16,13,20],[12,15,12,22],[12,2,12,14],[13,3,13,6],[13,7,13,12]]}
["Diese Tabelle muss nur für die Beschaffung von Schienenfahrzeugen ausgefüllt werden. ",{"$nulls":9},"Wasserstoff"]
[{"$nulls":10},"Strom"]
["Einzusetzende Emissionsfaktoren:",{"$nulls":9},"Diesel"]
[null,"CO2 (kg)"]
["1 kg Diesel",3.17]
["1 kg Grüner Wasserstoff",0]
["1 kg Grauer Wasserstoff",10.7]
["1 kWh erneuerbarer Strom",0]
["1 kWh deutscher Strommix",0.4]
[]
["Bei einer Nutzung mehrerer Energieträger, wird der Emissionsfaktor anteilig gewichtet. Beispiel: 50% grüner Wasserstoff und 50% grauer Wasserstoff: Emissionsfaktor = 5,35"]
[]
[null,null,"Auf nicht elektrifizierten Strecken ",{"$nulls":12},"Auf elektrifizierten Strecken "]
[null,null,null,"Zu ersetzendes Fahrzeug (bzw. Referenzfahrzeug)",null,null,null,"Zu beschaffendes Fahrzeug",{"$nulls":8},"Zu beschaffendes Fahrzeug"]
["Fahrzeug","Position in Excel-Datei \"Foerderfaehige_Ausgaben_Schienenfahrzeuge\"","Zurückgelegte km/Jahr","Typ Schienenfahrzeug","Verbrauch Diesel kg/km","Emissionsfaktor:\nkg CO2/kg Diesel","CO2 Ausstoß in kg/km","Typ Schienenfahrzeug","Energieträger [Auswahlbox]","Falls zutreffend: Anteil grüner Wasserstoff bzw. erneuerbarer Strom in %","Verbrauch in kg/km bzw. kWh/km","Emissionsfaktor:\nkg CO2/kg Wasserstoff\nkg CO2/khW Strom\nkg CO2/kg Diesel","CO2 Ausstoß in kg/km","CO2 Einsparung in kg/km","CO2 Einsparung in kg/Jahr","Zurückgelegte km/Jahr","Energieträger [Auswahlbox]","Falls zutreffend: Anteil grüner Wasserstoff bzw. erneuerbarer Strom in %","Verbrauch in kg/km bzw. kWh/km","Emissionsfaktor:\nkg CO2/kg Wasserstoff\nkg CO2/khW Strom\nkg CO2/kg Diesel","CO2 Ausstoß in kg/km","CO2 Einsparung in kg/km","CO2 Einsparung in kg/Jahr"]
[1,{"$nulls":4},3.17,{"$f":"E16*F16","v":0},{"$nulls":5},{"$f":"K16*L16","v":0},{"$f":"G16-M16","v":0},{"$f":"C16*N16","v":0},{"$nulls":5},{"$f":"S16*T16","v":0},{"$f":"G16-U16","v":0},{"$f":"P16*V16","v":0}]
[2,{"$nulls":4},3.17,{"$f":"E17*F17","v":0},{"$nulls":5},{"$f":"K17*L17","v":0},{"$f":"G17-M17","v":0},{"$f":"C17*N17","v":0},{"$nulls":5},{"$f":"S17*T17","v":0},{"$f":"G17-U17","v":0},{"$f":"P17*V17","v":0}]
[3,{"$nulls":4},3.17,0,{"$nulls":5},{"$f":"K18*L18","v":0},0,0,{"$nulls":5},0,0,0]
[4,{"$nulls":4},3.17,0,{"$nulls":5},0,0,0,{"$nulls":5},0,0,0]
[5,{"$nulls":4},3.17,0,{"$nulls":5},0,0,0,{"$nulls":5},0,0,0]
[6,{"$nulls":4},3.17,0,{"$nulls":5},0,0,0,{"$nulls":5},0,0,0]
[7,{"$nulls":4},3.17,0,{"$nulls":5},0,0,0,{"$nulls":5},0,0,0]
[8,{"$nulls":4},3.17,0,{"$nulls":5},0,0,0,{"$nulls":5},0,0,0]
[9,{"$nulls":4},3.17,0,{"$nulls":5},0,0,0,{"$nulls":5},0,0,0]
[10,{"$nulls":4},3.17,0,{"$nulls":5},0,0,0,{"$nulls":5},0,0,0]
[11,{"$nulls":4},3.17,0,{"$nulls":5},0,0,0,{"$nulls":5},0,0,0]
[12,{"$nulls":4},3.17,0,{"$nulls":5},0,0,0,{"$nulls":5},0,0,0]
[13,{"$nulls":4},3.17,0,{"$nulls":5},0,0,0,{"$nulls":5},0,0,0]
[14,{"$nulls":4},3.17,0,{"$nulls":5},0,0,0,{"$nulls":5},0,0,0]
[15,{"$nulls":4},3.17,0,{"$nulls":5},0,0,0,{"$nulls":5},0,0,0]
[16,{"$nulls":4},3.17,0,{"$nulls":5},0,0,0,{"$nulls":5},0,0,0]
[17,{"$nulls":4},3.17,0,{"$nulls":5},0,0,0,{"$nulls":5},0,0,0]
[18,{"$nulls":4},3.17,0,{"$nulls":5},0,0,0,{"$nulls":5},0,0,0]
[19,{"$nulls":4},3.17,0,{"$nulls":5},0,0,0,{"$nulls":5},0,0,0]
[20,{"$nulls":4},3.17,0,{"$nulls":5},0,{"$f":"G35-M35","v":0},{"$f":"C35*N35","v":0},{"$nulls":5},0,0,{"$f":"P35*V35","v":0}]
[{"$nulls":13},"Summe",{"$f":"SUM(O16:O35)","v":0},{"$nulls":6},"Summe",{"$f":"SUM(W16:W35)","v":0}]

{"sheet":"Beispiel","index":1,"n_rows":36,"n_cols":23,"rows_kept":36,"cut":false,"hidden":false,"merged":[[12,2,12,14],[12,15,12,22],[13,3,13,6],[13,7,13,12],[13,16,13,20]]}
["Diese Tabelle muss nur für die Beschaffung von Schienenfahrzeugen ausgefüllt werden. ",{"$nulls":9},"Wasserstoff"]
[{"$nulls":5},"Auszug aus der Vorhabenbeschreibung:",{"$nulls":4},"Strom"]
["Einzusetzende Emissionsfaktoren:",{"$nulls":9},"Diesel"]
[null,"CO2 (kg)"]
["1 kg Diesel",3.17,null,null,null,"Der Auftrag beinhaltet die Strecke zwischen Musterhausen und Beispielstadt mit einer Länge von 87,5 km und ist nicht elektrifiziert."]
["1 kg Grüner Wasserstoff",0,null,null,null,"Diese soll 2 mal täglich an den Werktagen befahren werden. Der beantragte HEMU soll 20 Wochen im Jahr eingesetzt werden."]
["1 kg Grauer Wasserstoff",10.7]
["1 kWh erneuerbarer Strom",0]
["1 kWh deutscher Strommix",0.4]
[]
["Bei einer Nutzung mehrerer Energieträger, wird der Emissionsfaktor anteilig gewichtet. Beispiel: 50% grüner Wasserstoff und 50% grauer Wasserstoff: Emissionsfaktor = 5,35"]
[]
[null,null,"Auf nicht elektrifizierten Strecken ",{"$nulls":12},"Auf elektrifizierten Strecken "]
[null,null,null,"Zu ersetzendes Fahrzeug (bzw. Referenzfahrzeug)",null,null,null,"Zu beschaffendes Fahrzeug",{"$nulls":8},"Zu beschaffendes Fahrzeug"]
["Fahrzeug","Position in Excel-Datei \"Foerderfaehige_Ausgaben_Schienenfahrzeuge\"","Zurückgelegte km/Jahr","Typ Schienenfahrzeug","Verbrauch Diesel kg/km","Emissionsfaktor:\nkg CO2/kg Diesel","CO2 Ausstoß in kg/km","Typ Schienenfahrzeug","Energieträger [Auswahlbox]","Falls zutreffend: Anteil grüner Wasserstoff bzw. erneuerbarer Strom in %","Verbrauch in kg/km bzw. kWh/km","Emissionsfaktor:\nkg CO2/kg Wasserstoff\nkg CO2/khW Strom\nkg CO2/kg Diesel","CO2 Ausstoß in kg/km","CO2 Einsparung in kg/km","CO2 Einsparung in kg/Jahr","Zurückgelegte km/Jahr","Energieträger [Auswahlbox]","Falls zutreffend: Anteil grüner Wasserstoff bzw. erneuerbarer Strom in %","Verbrauch in kg/km bzw. kWh/km","Emissionsfaktor:\nkg CO2/kg Wasserstoff\nkg CO2/khW Strom\nkg CO2/kg Diesel","CO2 Ausstoß in kg/km","CO2 Einsparung in kg/km","CO2 Einsparung in kg/Jahr"]
[1,"HEMU Muster",17500,"Diesel2018",2.8,3.17,{"$f":"E16*F16","v":8.8759999999999994},"HEMU Muster","Strom"," -",1,0.4,{"$f":"K16*L16","v":0.4},{"$f":"G16-M16","v":8.4759999999999991},{"$f":"C16*N16","v":148329.99999999997},{"$nulls":5},{"$f":"S16*T16","v":0},{"$f":"G16-U16","v":8.8759999999999994},{"$f":"P16*V16","v":0}]
[2,{"$nulls":4},3.17,{"$f":"E17*F17","v":0},{"$nulls":5},{"$f":"K17*L17","v":0},{"$f":"G17-M17","v":0},{"$f":"C17*N17","v":0},{"$nulls":5},{"$f":"S17*T17","v":0},{"$f":"G17-U17","v":0},{"$f":"P17*V17","v":0}]
[3,{"$nulls":4},3.17,0,{"$nulls":5},{"$f":"K18*L18","v":0},0,0,{"$nulls":5},0,0,0]
[4,{"$nulls":4},3.17,0,{"$nulls":5},0,0,0,{"$nulls":5},0,0,0]
[5,{"$nulls":4},3.17,0,{"$nulls":5},0,0,0,{"$nulls":5},0,0,0]
[6,{"$nulls":4},3.17,0,{"$nulls":5},0,0,0,{"$nulls":5},0,0,0]
[7,{"$nulls":4},3.17,0,{"$nulls":5},0,0,0,{"$nulls":5},0,0,0]
[8,{"$nulls":4},3.17,0,{"$nulls":5},0,0,0,{"$nulls":5},0,0,0]
[9,{"$nulls":4},3.17,0,{"$nulls":5},0,0,0,{"$nulls":5},0,0,0]
[10,{"$nulls":4},3.17,0,{"$nulls":5},0,0,0,{"$nulls":5},0,0,0]
[11,{"$nulls":4},3.17,0,{"$nulls":5},0,0,0,{"$nulls":5},0,0,0]
[12,{"$nulls":4},3.17,0,{"$nulls":5},0,0,0,{"$nulls":5},0,0,0]
[13,{"$nulls":4},3.17,0,{"$nulls":5},0,0,0,{"$nulls":5},0,0,0]
[14,{"$nulls":4},3.17,0,{"$nulls":5},0,0,0,{"$nulls":5},0,0,0]
[15,{"$nulls":4},3.17,0,{"$nulls":5},0,0,0,{"$nulls":5},0,0,0]
[16,{"$nulls":4},3.17,0,{"$nulls":5},0,0,0,{"$nulls":5},0,0,0]
[17,{"$nulls":4},3.17,0,{"$nulls":5},0,0,0,{"$nulls":5},0,0,0]
[18,{"$nulls":4},3.17,0,{"$nulls":5},0,0,0,{"$nulls":5},0,0,0]
[19,{"$nulls":4},3.17,0,{"$nulls":5},0,0,0,{"$nulls":5},0,0,0]
[20,{"$nulls":4},3.17,0,{"$nulls":5},0,{"$f":"G35-M35","v":0},{"$f":"C35*N35","v":0},{"$nulls":5},0,0,{"$f":"P35*V35","v":0}]
[{"$nulls":13},"Summe",{"$f":"SUM(O16:O35)","v":148329.99999999997},{"$nulls":6},"Summe",{"$f":"SUM(W16:W35)","v":0}]